fUSD/lending_fUSD_20251222
["ID","MTS","AMOUNT","RATE_DAILY","PERIOD"]
[399527215,1766437855895,-150.0,0.00033781,7]
[399527216,1766437855904,-150.0,0.00033816,7]
[399527217,1766437855913,-150.0,0.00033829,7]
[399527218,1766437855923,-150.0,0.00033842,7]
[399527219,1766437855932,-257083.1335504,0.00033869,2]
[399527220,1766437855942,-150.0,0.00033904,7]
[399527221,1766437855951,-150.0,0.00033904,7]
[399527222,1766437855960,-150.0,0.00033904,7]
[399527223,1766437855969,-150.0,0.00033904,7]
[399527224,1766437855979,-150.0,0.00033919,7]
[399527225,1766437855988,-502.74737926,0.00033939,60]
[399527226,1766437855998,-481.33,0.00033973,2]
[399527227,1766437856008,-481.33,0.00033973,2]
[399527228,1766437856018,-481.33,0.00033973,2]
[399527229,1766437856028,-481.33,0.00033973,2]
[399527230,1766437856037,-481.33,0.00033973,2]
[399527231,1766437856048,-962.58,0.00033973,2]
[399527232,1766437856058,-481.33,0.00033973,2]
[399527233,1766437856068,-218.93,0.00033973,2]
[399527234,1766437856077,-712.96,0.00033973,2]
[399527235,1766437856086,-373.65,0.00033973,2]
[399527236,1766437856095,-150.0,0.00033992,7]
[399527237,1766437856105,-1000.0,0.00034,11]
[399527238,1766437856114,-1000.0,0.00034,12]
[399527239,1766437856123,-7679.34267996,0.00034,4]
[399527240,1766437856133,-5000.0,0.00034,2]
[399527241,1766437856142,-150.0,0.00034009,7]
[399527242,1766437856151,-150.0,0.00034027,7]
[399527243,1766437856160,-150.0,0.00034027,7]
[399527244,1766437856169,-150.0,0.00034027,7]
[399527245,1766437856179,-150.0,0.00034058,7]
[399527246,1766437856188,-150.0,0.000341,7]
[399527247,1766437856197,-150.0,0.0003411,7]
[399527248,1766437856207,-1484.4659734,0.0003415,2]
[399527249,1766437856217,-290.73200731,0.0003415,6]
[399527250,1766437856227,-1000.0,0.00034151,10]
[399527251,1766437856236,-1000.0,0.00034151,10]
[399527252,1766437856246,-1000.0,0.00034151,10]
[399527253,1766437856255,-150.0,0.00034168,7]
[399527254,1766437856265,-150.0,0.0003419,7]
[399527255,1766437856275,-150.0,0.00034212,7]
[399527256,1766437856285,-150.0,0.00034212,7]
[399527257,1766437856294,-150.0,0.00034212,7]
[399527258,1766437856303,-290.0,0.00034233,30]
[399527259,1766437856313,-199.0,0.00034246,30]
[399527260,1766437856322,-500.76265074,0.00034247,2]
[399527261,1766437856331,-1000.0,0.00034249,10]
[399527262,1766437856340,-1000.0,0.00034249,10]
[399527263,1766437856350,-1000.0,0.00034249,10]
[399527264,1766437856360,-150.0,0.00034274,7]
[399527265,1766437856369,-150.0,0.0003428,7]
[399527266,1766437856379,-166.22,0.000343,30]
[399527267,1766437856389,-150.0,0.00034315,7]
[399527268,1766437856399,-150.0,0.00034344,7]
[399527269,1766437856409,-150.0,0.00034366,7]
[399527270,1766437856422,-150.0,0.0003437,7]
[399527271,1766437856432,-150.0,0.00034397,7]
[399527272,1766437856441,-14112.18182598,0.000344,2]
[399527273,1766437856451,-27138.59962185,0.000344,2]
[399527274,1766437856460,-1434.28602926,0.00034405,2]
[399527275,1766437856470,-1210.79827671,0.00034454,7]
[399527276,1766437856481,-285.3390516,0.00034454,7]
[399527277,1766437856490,-150.0,0.0003446,7]
[399527278,1766437856500,-500.0,0.00034473,30]
[399527279,1766437856510,-150.0,0.00034473,2]
[399527280,1766437856520,-433.0,0.0003449,10]
[399527281,1766437856529,-441.51056902,0.0003449,2]
[399527282,1766437856539,-300.0,0.00034499,10]
[399527283,1766437856548,-300.0,0.00034499,10]
[399527284,1766437856557,-300.0,0.00034499,10]
[399527285,1766437856567,-666.0,0.00034499,30]
[399527286,1766437856576,-57541.30649066,0.000345,3]
[399527287,1766437856586,-244141.13568646,0.000345,2]
[399527288,1766437856596,-2000.0,0.000345,2]
[399527289,1766437856605,-4549.74,0.000345,14]
[399527290,1766437856615,-151.651523,0.000345,31]
[399527291,1766437856625,-151.0,0.000345,31]
[399527292,1766437856635,-151.0,0.000345,30]
[399527293,1766437856644,-151.0,0.000345,31]
[399527294,1766437856653,-151.0,0.000345,31]
[399527295,1766437856663,-151.0,0.000345,31]
[399527296,1766437856673,-169.964532,0.000345,31]
[399527297,1766437856682,-151.0,0.000345,31]
[399527298,1766437856692,-151.0,0.000345,31]
[399527299,1766437856702,-151.0,0.000345,31]
[399527300,1766437856711,-151.0,0.000345,31]
[399527301,1766437856721,-151.0,0.000345,31]
[399527302,1766437856730,-151.0,0.000345,31]
[399527303,1766437856740,-151.0,0.000345,31]
[399527304,1766437856749,-270.99669,0.000345,31]
[399527305,1766437856758,-275.454211,0.000345,31]
[399527306,1766437856837,-275.454211,0.000345,31]
[399527307,1766437856847,-275.454211,0.000345,31]
[399527308,1766437856856,-275.454211,0.000345,31]
[399527309,1766437856865,-155.200561,0.000345,31]
[399527310,1766437856875,-151.0,0.000345,31]
[399527311,1766437856884,-151.0,0.000345,31]
[399527312,1766437856893,-151.0,0.000345,31]
[399527313,1766437856902,-151.0,0.000345,31]
[399527314,1766437856911,-151.0,0.000345,31]
[399527315,1766437856920,-191.859508,0.000345,7]
[399527316,1766437856930,-191.859508,0.000345,7]
[399527317,1766437856939,-191.859508,0.000345,7]
[399527318,1766437856948,-191.859508,0.000345,7]
[399527319,1766437856957,-151.0,0.000345,31]
[399527320,1766437856966,-151.0,0.000345,31]
[399527321,1766437856975,-151.0,0.000345,31]
[399527322,1766437856985,-249.810564,0.000345,31]
[399527323,1766437856995,-387.663354,0.000345,2]
[399527324,1766437857004,-387.663354,0.000345,2]
[399527325,1766437857014,-387.663354,0.000345,2]
[399527326,1766437857023,-387.663354,0.000345,2]
[399527327,1766437857032,-151.0,0.000345,31]
[399527328,1766437857041,-151.0,0.000345,31]
[399527329,1766437857050,-151.0,0.000345,14]
[399527330,1766437857060,-151.0,0.000345,14]
[399527331,1766437857069,-2282.131091,0.000345,28]
[399527332,1766437857078,-520.303541,0.000345,31]
[399527333,1766437857087,-2282.131091,0.000345,28]
[399527334,1766437857096,-520.303541,0.000345,31]
[399527335,1766437857105,-2282.131091,0.000345,28]
[399527336,1766437857114,-520.303541,0.000345,31]
[399527337,1766437857123,-844.82933374,0.000345,28]
[399527338,1766437857819,-422.57661239,0.00012049,2]
[399527339,1766437857965,-1471.42338761,0.00012049,2]
[399527340,1766437857974,-187.0,0.00016794,2]
[399527341,1766437857984,-6398.499,0.00018773,2]
[399527342,1766437857994,-220.93,0.00026027,2]
[399527343,1766437858003,-178.47,0.00032877,2]
[399527344,1766437858012,-1437.30175726,0.000345,28]
[399527345,1766437858020,-520.303541,0.000345,31]
[399527346,1766437858030,-362.325055,0.000345,31]
[399527347,1766437858039,-151.0,0.000345,31]
[399527348,1766437858048,-195.48572465,0.000345,31]
[399527349,1766437858059,-166.83933035,0.000345,31]
[399527350,1766437858068,-362.325055,0.000345,31]
[399527351,1766437858077,-362.325055,0.000345,31]
[399527352,1766437858086,-151.0,0.000345,31]
[399527353,1766437858096,-151.0,0.000345,31]
[399527354,1766437858106,-416.832707,0.000345,31]
[399527355,1766437858115,-416.832707,0.000345,31]
[399527356,1766437858125,-416.832707,0.000345,31]
[399527357,1766437858134,-416.832707,0.000345,31]
[399527358,1766437858144,-151.0,0.000345,31]
[399527359,1766437858153,-151.0,0.000345,31]
[399527360,1766437858162,-226.31048002,0.000345,3]
[399527361,1766437858171,-988.49382925,0.000345,2]
[399527362,1766437858183,-4787.58517645,0.000345,2]
[399527363,1766437858194,-1236.613284,0.000345,2]
[399527364,1766437858205,-5911.61489766,0.000345,2]
[399527365,1766437858217,-456.93,0.000345,2]
[399527366,1766437858228,-434.405,0.000345,2]
[399527367,1766437858239,-500.0,0.000345,2]
[399527368,1766437858604,-2370.44765046,0.000345,2]
[399527390,1766439031958,-412.77728069,0.00010623,2]
[399527391,1766439031970,-1187.22271931,0.00010623,2]
[399527392,1766439031980,-205.69,0.00010693,2]
[399527393,1766439031989,-22.00377089,0.00010799,2]
[399527394,1766439032001,-277.99622911,0.00010799,2]
[399527395,1766439032010,-1114.50980477,0.00010799,2]
[399527396,1766439032022,-85.49019523,0.00010799,2]
[399527397,1766439032031,-300.0,0.00010799,2]
[399527398,1766439032040,-300.0,0.00010799,2]
[399527399,1766439032049,-222.82141333,0.000108,2]
[399527400,1766439032061,-705.89360131,0.000108,2]
[399527401,1766439032076,-271.28498536,0.000108,2]
[399527402,1766439032085,-400.78531262,0.000108,2]
[399527403,1766439032096,-2640.28225799,0.000108,2]
[399527404,1766439032107,-3104.43791945,0.000108,2]
[399527405,1766439032116,-30849.86,0.00010801,2]
[399527406,1766439032125,-250.0,0.00010914,2]
[399527407,1766439032135,-500.0,0.00010928,2]
[399527408,1766439032144,-508.62,0.00011028,2]
[399527409,1766439032154,-3033.012337,0.00011241,2]
[399527410,1766439032163,-150.0,0.00011501,2]
[399527411,1766439032173,-2054.14665925,0.00011502,2]
[399527412,1766439032184,-12775.64132652,0.00011502,2]
[399527413,1766439032194,-185.0,0.00011504,2]
[399527414,1766439032203,-535.3344896,0.00011519,2]
[399527416,1766439032221,-395.6655104,0.00011519,2]
[399527418,1766439032231,-378.0,0.00011527,2]
[399527420,1766439032240,-500.0,0.00011533,2]
[399527422,1766439032249,-268.87620424,0.00011533,2]
[399527424,1766439032258,-500.0,0.00011533,2]
[399527426,1766439032267,-282.30440493,0.00011533,2]
[399527429,1766439032276,-257.44772173,0.00011533,2]
[399527432,1766439032285,-500.0,0.00011533,2]
[399527435,1766439032294,-500.0,0.00011533,2]
[399527438,1766439032304,-500.0,0.00011533,2]
[399527441,1766439032313,-500.0,0.00011533,2]
[399527444,1766439032322,-500.0,0.00011533,2]
[399527447,1766439032331,-500.0,0.00011533,2]
[399527450,1766439032340,-500.0,0.00011533,2]
[399527453,1766439032350,-500.0,0.00011533,2]
[399527456,1766439032358,-500.0,0.00011533,2]
[399527459,1766439032368,-500.0,0.00011533,2]
[399527461,1766439032377,-500.0,0.00011533,2]
[399527462,1766439032386,-500.0,0.00011533,2]
[399527463,1766439032396,-500.0,0.00011533,2]
[399527464,1766439032405,-500.0,0.00011533,2]
[399527465,1766439032415,-500.0,0.00011533,2]
[399527466,1766439032424,-500.0,0.00011533,2]
[399527467,1766439032433,-500.0,0.00011533,2]
[399527468,1766439032443,-187.8582623,0.00011533,2]
[399527469,1766439032454,-312.1417377,0.00011533,2]
[399527470,1766439032467,-500.0,0.00011533,2]
[399527471,1766439032476,-319.52649756,0.00011533,2]
[399527472,1766439032488,-180.47350244,0.00011533,2]
[399527473,1766439032497,-500.0,0.00011533,2]
[399527474,1766439032507,-500.0,0.00011533,2]
[399527475,1766439032517,-500.0,0.00011533,2]
[399527476,1766439032527,-500.0,0.00011533,2]
[399527477,1766439032536,-500.0,0.00011533,2]
[399527478,1766439032545,-500.0,0.00011533,2]
[399527479,1766439032555,-500.0,0.00011533,2]
[399527480,1766439032564,-500.0,0.00011533,2]
[399527481,1766439032574,-500.0,0.00011533,2]
[399527482,1766439032583,-500.0,0.00011533,2]
[399527483,1766439032593,-500.0,0.00011533,2]
[399527485,1766439032603,-500.0,0.00011533,2]
[399527486,1766439032612,-500.0,0.00011533,2]
[399527487,1766439032621,-500.0,0.00011533,2]
[399527488,1766439032631,-500.0,0.00011533,2]
[399527489,1766439032640,-500.0,0.00011533,2]
[399527490,1766439032650,-500.0,0.00011533,2]
[399527491,1766439032659,-184.44195422,0.00011533,2]
[399527495,1766439038411,-315.55804578,0.00011533,2]
[399527497,1766439038420,-500.0,0.00011533,2]
[399527498,1766439038430,-594.37309426,0.00011533,2]
[399527499,1766439038439,-500.0,0.00011533,2]
[399527500,1766439038449,-500.0,0.00011533,2]
[399527501,1766439038459,-500.0,0.00011533,2]
[399527502,1766439038468,-500.0,0.00011533,2]
[399527503,1766439038478,-500.0,0.00011533,2]
[399527504,1766439038488,-500.0,0.00011533,2]
[399527505,1766439038498,-500.0,0.00011533,2]
[399527506,1766439038508,-500.0,0.00011533,2]
[399527507,1766439038517,-500.0,0.00011533,2]
[399527508,1766439038527,-500.0,0.00011533,2]
[399527509,1766439038536,-500.0,0.00011533,2]
[399527510,1766439038546,-500.0,0.00011533,2]
[399527511,1766439038555,-500.0,0.00011533,2]
[399527512,1766439038565,-500.0,0.00011533,2]
[399527513,1766439038575,-500.0,0.00011533,2]
[399527514,1766439038584,-500.0,0.00011533,2]
[399527515,1766439038594,-500.0,0.00011533,2]
[399527516,1766439038603,-500.0,0.00011533,2]
[399527517,1766439038612,-500.0,0.00011533,2]
[399527518,1766439038622,-500.0,0.00011533,2]
[399527519,1766439038632,-500.0,0.00011533,2]
[399527520,1766439038641,-500.0,0.00011533,2]
[399527521,1766439038651,-500.0,0.00011533,2]
[399527522,1766439038661,-500.0,0.00011533,2]
[399527523,1766439038670,-500.0,0.00011533,2]
[399527524,1766439038680,-500.0,0.00011533,2]
[399527525,1766439038690,-443.68647499,0.00011533,2]
[399527526,1766439038699,-500.0,0.00011533,2]
[399527527,1766439038709,-500.0,0.00011533,2]
[399527528,1766439038719,-500.0,0.00011533,2]
[399527529,1766439038731,-500.0,0.00011533,2]
[399527530,1766439038742,-500.0,0.00011533,2]
[399527531,1766439038751,-500.0,0.00011533,2]
[399527532,1766439038761,-500.0,0.00011533,2]
[399527533,1766439038776,-500.0,0.00011533,2]
[399527534,1766439038786,-500.0,0.00011533,2]
[399527535,1766439038797,-500.0,0.00011533,2]
[399527536,1766439038807,-644.3686475,0.00011533,2]
[399527537,1766439038816,-1000000.0,0.00011534,2]
[399527538,1766439038826,-274.0,0.00011602,2]
[399527539,1766439038836,-2756.9178,0.00011626,2]
[399527540,1766439038846,-4692.8104,0.00011626,2]
[399527541,1766439038855,-6690.2965,0.00011626,2]
[399527542,1766439038865,-441.51056902,0.00011629,2]
[399527543,1766439038874,-2500.0,0.00011632,2]
[399527544,1766439038884,-18786.61,0.00011634,2]
[399527545,1766439038894,-512.123,0.00011634,2]
[399527546,1766439038906,-8047.588,0.00011634,2]
[399527547,1766439038916,-151.0,0.00011636,2]
[399527548,1766439038925,-150.99,0.00011638,2]
[399527549,1766439038935,-5689.35,0.00011638,2]
[399527550,1766439038944,-3017.08,0.00011638,2]
[399527551,1766439038954,-150.99,0.00011638,2]
[399527552,1766439038963,-9999.99,0.00011638,2]
[399527553,1766439038973,-7173.93,0.00011638,2]
[399527554,1766439038983,-8238.18,0.00011639,2]
[399527555,1766439038993,-9999.99,0.00011639,2]
[399527556,1766439039003,-66408.4,0.00011639,2]
[399527557,1766439039013,-299.99,0.00011639,2]
[399527558,1766439039022,-6129.97,0.00011639,2]
[399527559,1766439039032,-508.62,0.00011641,2]
[399527560,1766439039042,-326.0,0.00011677,2]
[399527561,1766439039053,-1353.14,0.00011725,2]
[399527562,1766439039063,-151.0,0.00011725,2]
[399527563,1766439039073,-151.0,0.00011725,2]
[399527564,1766439039083,-151.0,0.00011725,2]
[399527565,1766439039092,-151.0,0.00011725,2]
[399527566,1766439039101,-151.0,0.00011725,2]
[399527567,1766439039110,-151.0,0.00011725,2]
[399527568,1766439039120,-151.0,0.00011725,2]
[399527569,1766439039129,-151.0,0.00011725,2]
[399527570,1766439039139,-151.0,0.00011725,2]
[399527571,1766439039148,-151.0,0.00011725,2]
[399527572,1766439039158,-151.0,0.00011725,2]
[399527573,1766439039168,-151.0,0.00011725,2]
[399527574,1766439039178,-151.0,0.00011725,2]
[399527575,1766439039187,-151.0,0.00011725,2]
[399527576,1766439039197,-151.0,0.00011725,2]
[399527577,1766439039206,-151.0,0.00011725,2]
[399527578,1766439039217,-151.0,0.00011725,2]
[399527579,1766439039227,-265.47634732,0.00011725,2]
[399527580,1766439039237,-8816.28,0.00011726,2]
[399527581,1766439039247,-1434.2860293,0.00011731,2]
[399527582,1766439039257,-150.0,0.00011739,2]
[399527583,1766439039266,-168.26252141,0.00011739,2]
[399527584,1766439039276,-500.0,0.00011739,2]
[399527585,1766439039285,-150.0,0.00011739,2]
[399527586,1766439039295,-150.0,0.00011739,2]
[399527587,1766439039304,-500.0,0.00011739,2]
[399527588,1766439039313,-150.0,0.00011739,2]
[399527589,1766439039322,-441.0,0.00011739,2]
[399527590,1766439039331,-300.0,0.00011762,2]
[399527591,1766439039341,-152.83861574,0.00011766,2]
[399527592,1766439039350,-500.0,0.00011766,2]
[399527593,1766439039360,-150.0,0.00011766,2]
[399527594,1766439039370,-150.0,0.00011766,2]
[399527595,1766439039378,-500.0,0.00011766,2]
[399527596,1766439039388,-441.0,0.00011766,2]
[399527597,1766439039397,-12937.28446162,0.0001177,2]
[399527598,1766439039406,-500.0,0.00011794,2]
[399527599,1766439039416,-200.0,0.00011794,2]
[399527600,1766439039425,-201.31035432,0.00011794,2]
[399527601,1766439039435,-500.0,0.00011794,2]
[399527602,1766439039445,-441.0,0.00011794,2]
[399527603,1766439039454,-500.0,0.00011807,2]
[399527604,1766439039464,-500.0,0.00011821,2]
[399527605,1766439039474,-500.0,0.00011821,2]
[399527606,1766439039484,-441.0,0.00011821,2]
[399527607,1766439039494,-405.36136932,0.00011849,2]
[399527608,1766439039503,-191.44852268,0.00011849,2]
[399527609,1766439039516,-441.0,0.00011849,2]
[399527610,1766439039525,-420.0,0.00011869,2]
[399527611,1766439039534,-420.0,0.00011869,2]
[399527612,1766439039544,-168.0,0.00011869,2]
[399527613,1766439039554,-441.0,0.00011876,2]
[399527614,1766439039563,-1257.0,0.00011879,2]
[399527615,1766439039572,-1680.0,0.00011879,2]
[399527616,1766439039582,-195.0,0.0001188,2]
[399527617,1766439039591,-396.0,0.0001188,2]
[399527618,1766439039601,-300.0,0.0001188,2]
[399527619,1766439039611,-195.0,0.00011881,2]
[399527620,1766439039620,-250.0,0.00011881,2]
[399527621,1766439039630,-994.65827378,0.00011902,2]
[399527622,1766439039640,-441.0,0.00011903,2]
[399527623,1766439039649,-441.0,0.00011931,2]
[399527624,1766439039658,-1000.0,0.00011932,2]
[399527625,1766439039667,-1358.3835,0.00011932,2]
[399527626,1766439039677,-1600.0,0.00011951,2]
[399527627,1766439039686,-1353.14,0.00011999,2]
[399527628,1766439039696,-473.0,0.00012018,2]
[399527629,1766439039705,-266.05347831,0.00012024,2]
[399527630,1766439039718,-5704.63,0.0001203,2]
[399527631,1766439039731,-13070.88,0.00012055,2]
[399527632,1766439039742,-172.34172622,0.00012067,2]
[399527633,1766439039751,-316.55566339,0.00012081,2]
[399527634,1766439039761,-14829.78798575,0.00012102,2]
[399527635,1766439039772,-300.0,0.00012131,2]
[399527636,1766439039781,-508.62,0.00012253,2]
[399527637,1766439039791,-1353.14,0.00012273,2]
[399527638,1766439039803,-1353.14,0.00012547,2]
[399527639,1766439039813,-255.0,0.00012559,2]
[399527640,1766439039823,-14829.78798575,0.00012702,2]
[399527641,1766439039832,-1353.14,0.00012821,2]
[399527642,1766439039842,-508.62,0.00012866,2]
[399527643,1766439039852,-9999.99,0.00012893,2]
[399527644,1766439039862,-23319.75,0.00012893,2]
[399527645,1766439039871,-5150.19,0.00012893,2]
[399527646,1766439039882,-86524.18843441,0.0001299,2]
[399527647,1766439039891,-1904.73061634,0.00013,2]
[399527648,1766439039901,-11920.13,0.00013027,2]
[399527649,1766439039913,-587.0,0.00013046,2]
[399527650,1766439039924,-587.0,0.00013046,2]
[399527651,1766439039933,-5328.93897617,0.0001305,2]
[399527652,1766439039943,-2351.0,0.00013067,2]
[399527653,1766439039953,-150.0,0.00013071,2]
[399527654,1766439039963,-1353.14,0.00013095,2]
[399527655,1766439039972,-1600.0,0.00013279,2]
[399527656,1766439039982,-152.88,0.00013284,2]
[399527657,1766439039993,-14829.78798575,0.00013301,2]
[399527658,1766439040003,-1353.14,0.00013368,2]
[399527659,1766439040012,-508.62,0.00013479,2]
[399527660,1766439040022,-1353.14,0.00013642,2]
[399527662,1766439040031,-500.0,0.00013698,2]
[399527663,1766439040041,-500.0,0.00013698,2]
[399527664,1766439040051,-500.0,0.00013698,2]
[399527665,1766439040060,-151.26695213,0.00013698,2]
[399527666,1766439040070,-500.0,0.00013698,2]
[399527667,1766439040079,-500.0,0.00013698,2]
[399527668,1766439040088,-500.0,0.00013698,2]
[399527669,1766439040098,-181.4273766,0.00013698,2]
[399527670,1766439040111,-500.0,0.00013698,2]
[399527671,1766439040120,-500.0,0.00013698,2]
[399527672,1766439040130,-500.0,0.00013698,2]
[399527673,1766439040139,-500.0,0.00013698,2]
[399527674,1766439040148,-500.0,0.00013698,2]
[399527675,1766439040159,-500.0,0.00013698,2]
[399527676,1766439040169,-500.0,0.00013698,2]
[399527677,1766439040178,-365.85655811,0.00013698,2]
[399527678,1766439040188,-500.0,0.00013698,2]
[399527679,1766439040197,-500.0,0.00013698,2]
[399527680,1766439040207,-500.0,0.00013698,2]
[399527681,1766439040216,-370.97583972,0.00013698,2]
[399527682,1766439040226,-500.0,0.00013698,2]
[399527683,1766439040235,-500.0,0.00013698,2]
[399527684,1766439040245,-500.0,0.00013698,2]
[399527685,1766439040255,-500.0,0.00013698,2]
[399527686,1766439040264,-525.99859536,0.00013698,2]
[399527687,1766439040274,-500.0,0.00013698,2]
[399527699,1766439040659,-500.0,0.00013698,2]
[399527700,1766439040671,-500.0,0.00013698,2]
[399527701,1766439040680,-500.0,0.00013698,2]
[399527702,1766439040690,-500.0,0.00013698,2]
[399527703,1766439040700,-500.0,0.00013698,2]
[399527704,1766439040710,-500.0,0.00013698,2]
[399527706,1766439040719,-500.0,0.00013698,2]
[399527707,1766439040732,-502.20097249,0.00013698,2]
[399527708,1766439040743,-500.0,0.00013698,2]
[399527709,1766439040752,-500.0,0.00013698,2]
[399527710,1766439040763,-500.0,0.00013698,2]
[399527711,1766439040772,-500.0,0.00013698,2]
[399527712,1766439040782,-500.0,0.00013698,2]
[399527713,1766439040790,-500.0,0.00013698,2]
[399527714,1766439040802,-500.0,0.00013698,2]
[399527715,1766439040812,-500.0,0.00013698,2]
[399527716,1766439040822,-500.0,0.00013698,2]
[399527717,1766439040831,-500.0,0.00013698,2]
[399527718,1766439040841,-500.0,0.00013698,2]
[399527719,1766439040851,-500.0,0.00013698,2]
[399527720,1766439040860,-500.0,0.00013698,2]
[399527721,1766439040870,-494.16568135,0.00013698,2]
[399527722,1766439040880,-500.0,0.00013698,2]
[399527723,1766439040891,-500.0,0.00013698,2]
[399527724,1766439040901,-500.0,0.00013698,2]
[399527725,1766439040910,-500.0,0.00013698,2]
[399527726,1766439040919,-500.0,0.00013698,2]
[399527727,1766439040929,-500.0,0.00013698,2]
[399527728,1766439040938,-500.0,0.00013698,2]
[399527729,1766439040947,-500.0,0.00013698,2]
[399527730,1766439040961,-500.0,0.00013698,2]
[399527731,1766439040971,-500.0,0.00013698,2]
[399527732,1766439040980,-509.35122608,0.00013698,2]
[399527733,1766439040990,-500.0,0.00013698,2]
[399527734,1766439041000,-500.0,0.00013698,2]
[399527735,1766439041010,-500.0,0.00013698,2]
[399527736,1766439041019,-500.0,0.00013698,2]
[399527737,1766439041029,-500.0,0.00013698,2]
[399527738,1766439041038,-500.0,0.00013698,2]
[399527739,1766439041048,-510.86029649,0.00013698,2]
[399527740,1766439041058,-500.0,0.00013698,2]
[399527741,1766439041068,-500.0,0.00013698,2]
[399527742,1766439041078,-500.0,0.00013698,2]
[399527743,1766439041088,-500.0,0.00013698,2]
[399527744,1766439041098,-500.0,0.00013698,2]
[399527745,1766439041107,-500.0,0.00013698,2]
[399527746,1766439041117,-500.0,0.00013698,2]
[399527747,1766439041126,-500.0,0.00013698,2]
[399527748,1766439041136,-500.0,0.00013698,2]
[399527749,1766439041145,-500.0,0.00013698,2]
[399527750,1766439041155,-500.0,0.00013698,2]
[399527751,1766439041165,-500.0,0.00013698,2]
[399527752,1766439041176,-500.0,0.00013698,2]
[399527753,1766439041185,-500.0,0.00013698,2]
[399527754,1766439041195,-500.0,0.00013698,2]
[399527755,1766439041204,-500.0,0.00013698,2]
[399527756,1766439041213,-500.0,0.00013698,2]
[399527757,1766439041223,-500.0,0.00013698,2]
[399527758,1766439041232,-508.77600646,0.00013698,2]
[399527759,1766439041242,-500.0,0.00013698,2]
[399527760,1766439041251,-596.20415987,0.00013698,2]
[399527761,1766439041260,-500.0,0.00013698,2]
[399527762,1766439041271,-500.0,0.00013698,2]
[399527763,1766439041280,-500.0,0.00013698,2]
[399527764,1766439041290,-500.0,0.00013698,2]
[399527765,1766439041299,-500.0,0.00013698,2]
[399527766,1766439041308,-500.0,0.00013698,2]
[399527767,1766439041317,-500.0,0.00013698,2]
[399527768,1766439041327,-500.0,0.00013698,2]
[399527769,1766439041339,-500.0,0.00013698,2]
[399527770,1766439041349,-500.0,0.00013698,2]
[399527771,1766439041358,-500.0,0.00013698,2]
[399527772,1766439041368,-500.0,0.00013698,2]
[399527773,1766439041377,-500.0,0.00013698,2]
[399527774,1766439041387,-500.0,0.00013698,2]
[399527775,1766439041396,-500.0,0.00013698,2]
[399527776,1766439041406,-500.0,0.00013698,2]
[399527777,1766439041416,-531.25264543,0.00013698,2]
[399527778,1766439041425,-445.92,0.00013699,2]
[399527779,1766439041435,-500.0,0.00013699,2]
[399527780,1766439041445,-626.44979221,0.00013699,2]
[399527781,1766439041454,-1170.23,0.000137,2]
[399527782,1766439041464,-1170.23,0.000137,2]